bitfinex-derivatives/quotes_BTCF0:USTF0_20250117
["timestamp","ask_amount","ask_price","bid_price","bid_amount"]
[1737142060058,0.13001404,105580.0,105570.0,0.047335]
[1737142060059,0.048332,105580.0,105570.0,0.047335]
[1737142060258,0.048332,105580.0,105570.0,0.408135]
[1737142060457,0.048332,105580.0,105570.0,0.3608]
[1737142060662,0.17734604,105580.0,105570.0,0.3608]
[1737142063665,0.13443119,105580.0,105570.0,0.3608]
[1737142063869,0.13443119,105580.0,105560.0,0.49703987]
[1737142064165,0.13343419,105570.0,105560.0,0.047338]
[1737142065065,0.13343419,105570.0,105550.0,0.408142]
[1737142065456,0.76343419,105570.0,105550.0,0.408142]
[1737142066857,0.76443419,105570.0,105550.0,0.408142]
[1737142067062,0.76443419,105570.0,105550.0,0.455482]
[1737142067263,0.76443419,105570.0,105550.0,0.455481]
[1737142067463,0.76443419,105570.0,105550.0,0.40814]
[1737142067762,0.76443419,105570.0,105550.0,0.41777612]
[1737142067967,0.76443419,105570.0,105550.0,0.46511712]
[1737142068172,0.76443419,105570.0,105550.0,0.41777612]
[1737142068671,0.08609919,105560.0,105550.0,0.41777612]
[1737142068866,0.76443419,105570.0,105550.0,0.46511712]
[1737142069064,0.13343919,105560.0,105550.0,0.41778012]
[1737142069563,0.13343919,105560.0,105550.0,0.37043612]
[1737142069771,0.13443919,105560.0,105550.0,0.00963612]
[1737142070068,0.13443919,105560.0,105550.0,0.01479483]
[1737142071965,0.04834,105560.0,105550.0,0.42293883]
[1737142072163,0.001,105560.0,105550.0,0.50903802]
[1737142072370,0.001,105560.0,105550.0,0.59603802]
[1737142072565,0.001,105560.0,105550.0,0.58124319]
[1737142072868,0.001,105560.0,105550.0,0.495144]
[1737142074068,0.001,105560.0,105550.0,0.41741602]
[1737142074069,0.08709919,105560.0,105550.0,0.41741602]
[1737142074669,0.13443919,105560.0,105550.0,0.41741602]
[1737142075670,0.13443919,105560.0,105550.0,0.05661602]
[1737142076572,0.001,105560.0,105550.0,0.41741602]
[1737142076770,0.001,105560.0,105550.0,0.50351521]
[1737142077563,0.001,105560.0,105550.0,0.41741602]
[1737142078163,0.047331,105580.0,105570.0,0.047335]
[1737142078363,0.13343019,105580.0,105570.0,0.3608]
[1737142078568,0.13343019,105580.0,105560.0,0.408137]
[1737142078770,0.08609919,105570.0,105560.0,0.408137]
[1737142079099,0.13343419,105570.0,105560.0,0.047337]
[1737142079278,0.58033338,105570.0,105560.0,0.22058015]
[1737142079469,0.49423419,105570.0,105560.0,0.22058015]
[1737142079698,0.58033338,105570.0,105560.0,0.22058015]
[1737142080004,0.13343419,105570.0,105560.0,0.58138015]
[1737142080210,0.58033338,105570.0,105560.0,0.22058015]
[1737142080405,0.74763338,105570.0,105560.0,0.22058015]
[1737142080701,0.83473338,105570.0,105560.0,0.22058015]
[1737142080900,0.83473338,105570.0,105560.0,0.23537523]
[1737142081099,0.04734,105560.0,105550.0,0.27740016]
[1737142081300,0.49423919,105560.0,105550.0,0.27740016]
[1737142081793,0.047344,105550.0,105540.0,0.2788215]
[1737142081992,0.49424319,105550.0,105540.0,0.2788215]
[1737142082184,1.12424319,105550.0,105540.0,0.2788215]
[1737142082600,1.21034238,105550.0,105540.0,0.2788215]
[1737142082798,1.21034238,105550.0,105520.0,1.02847174]
[1737142082799,0.047353,105530.0,105520.0,1.02847174]
[1737142082986,0.13345219,105530.0,105520.0,0.97152204]
[1737142083489,0.047353,105530.0,105520.0,1.01888004]
[1737142083789,0.047353,105530.0,105520.0,0.408158]
[1737142084196,0.048353,105530.0,105520.0,0.36084312]
[1737142084392,0.001,105530.0,105520.0,0.36084312]
[1737142084593,0.21955019,105540.0,105520.0,2.08574936]
[1737142085296,0.10675773,105540.0,105520.0,2.08574936]
[1737142085496,0.10675773,105540.0,105520.0,2.17184855]
[1737142085796,0.10675773,105540.0,105520.0,1.58266795]
[1737142086093,0.08609919,105530.0,105520.0,1.58266795]
[1737142086380,0.08609919,105530.0,105520.0,1.14086789]
[1737142087169,0.13345219,105540.0,105530.0,0.047353]
[1737142087372,0.08609919,105540.0,105530.0,0.568653]
[1737142087563,1.003562,105560.0,105550.0,0.047344]
[1737142087564,0.556462,105560.0,105550.0,0.047344]
[1737142087769,0.556462,105560.0,105550.0,0.768944]
[1737142087969,0.047342,105560.0,105550.0,0.768944]
[1737142088172,0.13344119,105560.0,105550.0,0.408144]
[1737142088774,0.13344119,105560.0,105550.0,1.18816877]
[1737142089177,0.49424119,105560.0,105550.0,0.78002477]
[1737142089878,0.58154119,105560.0,105550.0,1.11344157]
[1737142090580,1.21154119,105560.0,105550.0,1.11344157]
[1737142091074,1.21154119,105560.0,105550.0,0.67746125]
[1737142092169,1.21154119,105560.0,105550.0,0.27795519]
[1737142093373,1.22080098,105560.0,105550.0,0.27795519]
[1737142093980,0.047344,105550.0,105540.0,0.3334168]
[1737142094176,0.047344,105550.0,105540.0,0.48616045]
[1737142094177,1.17594319,105550.0,105540.0,0.48616045]
[1737142094375,1.17594319,105550.0,105520.0,0.83067558]
[1737142094376,0.047353,105530.0,105520.0,0.83067558]
[1737142094582,0.85505219,105530.0,105520.0,0.83067558]
[1737142095173,0.94115138,105530.0,105520.0,0.7833607]
[1737142095374,0.94115138,105530.0,105520.0,0.6725647]
[1737142095774,0.94115138,105530.0,105500.0,0.59641182]
[1737142095775,0.047362,105510.0,105500.0,0.59641182]
[1737142096086,0.94116038,105510.0,105500.0,0.43439025]
[1737142096689,0.94116038,105510.0,105500.0,0.30583525]
[1737142097182,0.047371,105490.0,105480.0,0.0799]
[1737142097380,0.49427019,105490.0,105480.0,0.0799]
[1737142097879,0.047371,105490.0,105480.0,0.488076]
[1737142098182,0.45638198,105510.0,105480.0,0.57417519]
[1737142098387,0.13346619,105500.0,105490.0,0.047367]
[1737142098784,0.45638198,105510.0,105490.0,0.408167]
[1737142099085,0.408166,105510.0,105500.0,0.1705]
[1737142099280,1.068966,105510.0,105460.0,0.3608]
[1737142099588,0.17680661,105470.0,105460.0,0.3608]
[1737142099783,0.17680361,105480.0,105460.0,0.43187651]
[1737142099980,0.17680361,105480.0,105470.0,0.0863]
[1737142100175,0.047377,105480.0,105470.0,0.4471]
[1737142100392,0.60351938,105500.0,105470.0,0.48335366]
[1737142100598,0.17679861,105490.0,105480.0,0.134074]
[1737142100996,0.047372,105490.0,105480.0,0.134074]
[1737142101299,0.17679861,105490.0,105480.0,0.134074]
[1737142101689,0.17679861,105490.0,105480.0,0.0867]
[1737142101894,0.17679861,105490.0,105480.0,0.4475]
[1737142102494,0.047372,105490.0,105480.0,0.494876]
[1737142102893,0.047372,105490.0,105480.0,0.4475]
[1737142103797,0.17679861,105490.0,105480.0,0.4475]
[1737142104294,0.047372,105490.0,105480.0,0.4475]
[1737142104492,0.17679861,105490.0,105480.0,0.4475]
[1737142104901,0.17679861,105490.0,105480.0,0.0867]
[1737142106791,0.17679861,105490.0,105480.0,0.1015057]
[1737142107191,0.53759861,105490.0,105480.0,0.1015057]
[1737142107396,0.80679861,105490.0,105480.0,0.1015057]
[1737142107594,1.29702522,105490.0,105480.0,7e-07]
[1737142107902,1.37692522,105490.0,105440.0,7.645e-05]
[1737142108103,0.53761561,105450.0,105440.0,0.166]
[1737142109001,0.53761561,105450.0,105420.0,0.3608]
[1737142109201,0.047403,105420.0,105410.0,0.3608]
[1737142109503,0.047407,105410.0,105400.0,0.4608]
[1737142110295,0.047407,105410.0,105400.0,0.48450376]
[1737142110996,0.047407,105410.0,105400.0,0.20420376]
[1737142111393,0.17683361,105410.0,105400.0,0.20420376]
[1737142111589,0.047407,105410.0,105400.0,0.20420376]
[1737142112206,0.047407,105410.0,105400.0,0.72990376]
[1737142112499,0.047404,105420.0,105400.0,0.90674237]
[1737142112702,0.12942661,105440.0,105410.0,0.49022661]
[1737142113001,0.047398,105430.0,105420.0,0.3608]
[1737142113202,0.047398,105430.0,105420.0,0.38450376]
[1737142113505,0.17682461,105430.0,105420.0,0.02370376]
[1737142114190,0.047398,105430.0,105420.0,0.02370376]
[1737142114793,0.047398,105430.0,105420.0,0.43190676]
[1737142115905,0.047398,105430.0,105420.0,0.38450376]
[1737142116198,0.047398,105430.0,105420.0,0.02370376]
[1737142116590,0.047398,105430.0,105420.0,0.38450376]
[1737142117998,0.17682461,105430.0,105420.0,0.38450376]
[1737142118501,0.047398,105430.0,105420.0,0.43190676]
[1737142118799,0.53903872,105450.0,105420.0,0.56133137]
[1737142118800,0.047395,105440.0,105420.0,0.56133137]
[1737142119001,0.047395,105440.0,105430.0,0.5236]
[1737142119500,0.04881411,105450.0,105430.0,0.5236]
[1737142119708,0.04881411,105450.0,105440.0,0.3608]
[1737142119902,0.04881411,105450.0,105440.0,0.37561121]
[1737142120101,0.047391,105450.0,105440.0,0.37561121]
[1737142120608,0.17681761,105450.0,105440.0,0.37561121]
[1737142120906,0.17681761,105450.0,105440.0,0.01481121]
[1737142121104,0.53761761,105450.0,105440.0,0.01481121]
[1737142121700,0.53761761,105450.0,105440.0,0.03851134]
[1737142123912,0.53761761,105450.0,105440.0,0.03887697]
[1737142125210,0.53761761,105450.0,105440.0,0.01517684]
[1737142125707,0.53761761,105450.0,105440.0,0.06257084]
[1737142126118,0.53761761,105450.0,105440.0,0.01517684]
[1737142126413,0.53761761,105450.0,105440.0,0.00036563]
[1737142128711,0.17681761,105450.0,105440.0,0.36116563]
[1737142130912,0.047391,105450.0,105440.0,0.40855963]
[1737142131511,0.1336914,105450.0,105440.0,0.40855963]
[1737142132016,0.1336914,105450.0,105440.0,0.36116563]
[1737142133119,0.047391,105450.0,105440.0,0.40855963]
[1737142135005,0.1336914,105450.0,105440.0,0.40855963]
[1737142136213,0.1336914,105450.0,105440.0,1.01685063]
[1737142138815,0.1336914,105450.0,105440.0,0.96945663]
[1737142139318,0.1336914,105450.0,105440.0,0.60865663]
[1737142139621,0.4944914,105450.0,105440.0,0.60865663]
[1737142140616,0.1336914,105450.0,105440.0,0.60865663]
[1737142141014,0.1336914,105450.0,105440.0,0.00036563]
[1737142141322,0.1336914,105450.0,105440.0,0.36116563]
[1737142142113,0.1336914,105450.0,105440.0,1.30152957]
[1737142144412,0.1336914,105450.0,105440.0,1.02373665]
[1737142144821,0.047391,105450.0,105440.0,1.07113065]
[1737142145019,0.1336914,105450.0,105440.0,1.07113065]
[1737142147723,0.047391,105450.0,105440.0,1.07113065]
[1737142148521,0.1336914,105450.0,105440.0,1.07113065]
[1737142149330,0.1336914,105450.0,105440.0,1.42736877]
[1737142150021,0.047391,105450.0,105440.0,1.42736877]
[1737142151830,0.047391,105450.0,105440.0,1.09529583]
[1737142151831,0.1336914,105450.0,105440.0,1.09529583]
[1737142154430,0.5807918,105450.0,105440.0,0.73449583]
[1737142154631,0.4944914,105450.0,105440.0,0.73449583]
[1737142155223,0.4944914,105450.0,105440.0,1.08567856]
[1737142155727,0.6599918,105450.0,105440.0,1.08567856]
[1737142155914,0.5736914,105450.0,105440.0,1.08567856]
[1737142156119,0.6599918,105450.0,105440.0,1.08567856]
[1737142156514,0.6599918,105450.0,105440.0,0.68204644]
[1737142157125,0.7446918,105450.0,105440.0,0.66723365]
[1737142158730,0.7446918,105450.0,105440.0,0.61125882]
[1737142159830,0.7446918,105450.0,105440.0,0.94762876]
[1737142160932,0.7446918,105450.0,105440.0,0.61125882]
[1737142166735,0.7446918,105450.0,105440.0,0.39308362]
[1737142166935,0.047403,105420.0,105410.0,0.52039182]
[1737142167135,0.5808038,105420.0,105410.0,0.47298482]
[1737142167526,0.5808038,105420.0,105410.0,0.48780098]
[1737142167930,0.5808038,105420.0,105410.0,0.09951616]
[1737142168327,0.5808038,105420.0,105410.0,0.01481616]
[1737142168529,0.7433038,105420.0,105410.0,0.01481616]
[1737142169436,0.7433038,105420.0,105410.0,0.23889757]
[1737142170736,0.7433038,105420.0,105410.0,0.01481616]
[1737142171929,0.7433038,105420.0,105400.0,0.32408141]
[1737142171930,1.2531038,105420.0,105400.0,0.32408141]
[1737142172133,1.138207,105410.0,105400.0,0.32408141]
[1737142172433,1.2245074,105410.0,105400.0,0.32408141]
[1737142174233,1.2245074,105410.0,105400.0,0.1]
[1737142175139,0.047407,105410.0,105400.0,0.1]
[1737142175329,0.047407,105410.0,105400.0,0.6764124]
[1737142175631,0.047407,105410.0,105400.0,0.590112]
[1737142177239,0.047407,105410.0,105400.0,0.5427]
[1737142178640,0.047407,105410.0,105400.0,0.6764124]
[1737142180643,0.047403,105420.0,105400.0,0.6764124]
[1737142180836,0.047403,105420.0,105410.0,0.4416]
[1737142181134,0.1337034,105420.0,105410.0,0.0808]
[1737142181327,0.4945034,105420.0,105410.0,0.0808]
[1737142181925,0.408203,105420.0,105410.0,0.0808]
[1737142182129,0.1337034,105420.0,105410.0,0.30434141]
[1737142187743,0.047403,105420.0,105410.0,0.79884881]
[1737142188136,0.047403,105420.0,105410.0,1.13125514]
[1737142189136,0.047403,105420.0,105410.0,1.24333401]
[1737142190229,0.0474,105430.0,105420.0,0.047401]
[1737142190446,0.0474,105430.0,105420.0,0.4945014]
[1737142190935,0.0474,105430.0,105420.0,0.408201]
[1737142191336,0.0474,105430.0,105420.0,0.4945014]
[1737142191534,0.0474,105430.0,105420.0,0.82690773]
[1737142192845,0.0474,105430.0,105420.0,1.16252801]
[1737142193040,0.0474,105430.0,105420.0,1.11512701]
[1737142196149,0.0474,105430.0,105420.0,1.16253001]
[1737142200649,0.0474,105430.0,105420.0,0.97296424]
[1737142200851,0.0474,105430.0,105420.0,1.06880133]
[1737142201553,0.0474,105430.0,105420.0,1.11620433]
[1737142202341,0.09621462,105440.0,105430.0,0.047398]
[1737142202342,0.04881862,105440.0,105430.0,0.047398]
[1737142202648,0.04881862,105440.0,105430.0,0.6578984]
[1737142203146,0.04881862,105440.0,105430.0,0.2970984]
[1737142203352,0.04881862,105440.0,105430.0,0.6578984]
[1737142203945,0.04881862,105440.0,105430.0,1.32592501]
[1737142204155,0.047395,105440.0,105430.0,1.32592501]
[1737142205352,0.047392,105450.0,105440.0,0.047394]
[1737142205556,0.047392,105450.0,105440.0,0.5746944]
[1737142206643,0.047392,105450.0,105440.0,1.24272101]
[1737142207754,0.4176402,105470.0,105440.0,1.24272101]
[1737142207949,0.4176402,105470.0,105450.0,0.4944874]
[1737142208144,0.4176402,105470.0,105440.0,1.10902661]
[1737142208145,0.1336854,105460.0,105440.0,1.10902661]
[1737142208458,0.047389,105450.0,105440.0,0.74822661]
[1737142208653,0.1336894,105450.0,105440.0,0.0802]
[1737142209045,0.047389,105450.0,105440.0,0.5746944]
[1737142210656,0.047389,105450.0,105440.0,1.51921901]
[1737142211558,0.777389,105450.0,105440.0,1.51921901]
[1737142211860,0.73,105450.0,105440.0,1.51921901]
[1737142212363,0.777389,105450.0,105440.0,1.51921901]
[1737142212955,0.777389,105450.0,105440.0,1.30532461]
[1737142213150,0.9499898,105450.0,105440.0,0.94452461]
[1737142213349,1.2244894,105450.0,105440.0,0.94452461]
[1737142213557,0.777389,105450.0,105440.0,1.43901901]
[1737142215049,0.777389,105450.0,105440.0,1.10339873]
[1737142217451,0.777389,105450.0,105440.0,1.15954832]
[1737142217655,0.777389,105450.0,105440.0,0.66505392]
[1737142217656,0.8636894,105450.0,105440.0,0.66505392]
[1737142217959,0.1336894,105450.0,105440.0,0.66505392]
[1737142218259,0.4944894,105450.0,105440.0,0.32943364]
[1737142218466,0.6675898,105450.0,105440.0,0.19713364]
[1737142218662,0.047394,105440.0,105430.0,0.33562028]
[1737142218961,1.3107948,105440.0,105430.0,0.33562028]
[1737142219151,1.3107948,105440.0,105430.0,0.11744508]
[1737142219358,0.047403,105420.0,105410.0,0.39608268]
[1737142219667,0.4945034,105420.0,105410.0,0.39608268]
[1737142219866,0.4945034,105420.0,105410.0,0.3358361]
[1737142220963,0.4945034,105420.0,105410.0,0.22380444]
[1737142222167,0.777407,105410.0,105400.0,1.261969]
[1737142222956,0.777407,105410.0,105400.0,0.758409]
[1737142223264,0.8637074,105410.0,105400.0,0.758409]
[1737142223667,0.777407,105410.0,105400.0,0.758409]
[1737142223867,0.777407,105410.0,105400.0,1.03816456]
[1737142224365,0.777407,105410.0,105400.0,1.12446496]
[1737142224564,0.047407,105410.0,105400.0,1.12446496]
[1737142224768,0.047403,105420.0,105410.0,0.047405]
[1737142225069,0.047403,105420.0,105410.0,0.3608]
[1737142225558,0.1337034,105420.0,105410.0,0.3608]
[1737142226057,0.1337034,105420.0,105410.0,0.22348487]
[1737142226259,0.1337034,105420.0,105410.0,0.58428487]
[1737142227768,0.047403,105420.0,105410.0,0.58428487]
[1737142228670,0.047403,105420.0,105410.0,0.63169187]
[1737142229373,0.1337034,105420.0,105410.0,0.63169187]
[1737142230175,0.1337034,105420.0,105410.0,0.64110789]
[1737142230562,0.1337034,105420.0,105410.0,0.58428487]
[1737142230762,0.1337034,105420.0,105410.0,0.7518611]
[1737142230965,0.047403,105420.0,105410.0,0.7518611]
[1737142231472,0.047403,105420.0,105410.0,0.7992681]
[1737142232270,0.1337034,105420.0,105410.0,0.7992681]
[1737142232778,0.047403,105420.0,105410.0,0.7992681]
[1737142234873,0.1337034,105420.0,105410.0,0.7992681]
[1737142235377,0.047403,105420.0,105410.0,0.7992681]
[1737142236080,0.047403,105420.0,105410.0,0.63169187]
[1737142237579,0.047403,105420.0,105410.0,0.71799227]
[1737142238070,0.047403,105420.0,105410.0,0.63169187]
[1737142238271,0.047403,105420.0,105410.0,0.79930332]
[1737142239379,0.047403,105420.0,105410.0,0.63169187]
[1737142243578,0.047403,105420.0,105410.0,0.99775282]
[1737142246272,0.047403,105420.0,105410.0,1.08405322]
[1737142246583,0.4096172,105440.0,105430.0,0.047398]
[1737142246778,0.047398,105430.0,105420.0,0.3608]
[1737142246979,0.047403,105420.0,105410.0,0.58954582]
[1737142247177,0.4945034,105420.0,105410.0,0.58954582]
[1737142247486,0.5808038,105420.0,105410.0,0.58954582]
[1737142247983,0.4945034,105420.0,105410.0,0.58954582]
[1737142248683,0.5808038,105420.0,105410.0,0.58954582]
[1737142253088,0.5808038,105420.0,105410.0,0.81408211]
[1737142254385,0.047407,105410.0,105400.0,1.04129248]
[1737142254586,0.1337074,105410.0,105400.0,1.04129248]
[1737142255092,0.1337074,105410.0,105400.0,0.99388048]
[1737142255281,0.1337074,105410.0,105400.0,0.91178048]
[1737142255678,0.1337074,105410.0,105400.0,1.22464114]
[1737142256193,0.1337074,105410.0,105400.0,1.05654114]
[1737142256392,0.2301074,105410.0,105400.0,1.05654114]
[1737142257988,0.2301074,105410.0,105400.0,1.10395314]
[1737142258293,0.0863004,105420.0,105400.0,1.10395314]
[1737142258482,0.047404,105420.0,105410.0,0.6731074]
[1737142258687,0.047404,105420.0,105410.0,0.586807]
[1737142259296,0.047404,105420.0,105410.0,0.89966766]
[1737142259297,0.1337044,105420.0,105410.0,0.89966766]
[1737142259797,0.1337044,105420.0,105410.0,0.49146066]
[1737142260601,0.1337044,105420.0,105410.0,0.7719045]
[1737142261397,0.5808048,105420.0,105410.0,0.7719045]
[1737142261600,0.5808048,105420.0,105410.0,1.1072593]
[1737142262398,0.5808048,105420.0,105410.0,1.0165593]
[1737142262598,0.5808048,105420.0,105410.0,0.6812045]
[1737142263803,0.5808048,105420.0,105410.0,0.3123127]
[1737142264894,0.4945044,105420.0,105410.0,0.3123127]
[1737142265096,0.4945044,105420.0,105410.0,0.6731127]
[1737142265097,0.047404,105420.0,105410.0,0.6731127]
[1737142265602,0.1337044,105420.0,105410.0,0.6731127]
[1737142266002,0.5808048,105420.0,105410.0,0.3123127]
[1737142266197,0.5808048,105420.0,105410.0,0.69004595]
[1737142271401,0.4945044,105420.0,105410.0,0.69004595]
[1737142271810,0.5808048,105420.0,105410.0,0.69004595]
[1737142272704,0.5808048,105420.0,105410.0,0.47696995]
[1737142272904,0.5808048,105420.0,105410.0,0.34947195]
[1737142273702,0.5808048,105420.0,105410.0,0.22474422]
[1737142274911,0.5808048,105420.0,105410.0,0.39337465]
[1737142275705,0.5808048,105420.0,105410.0,0.25166765]
[1737142276606,0.5808048,105420.0,105410.0,0.08303722]
[1737142277206,0.5808048,105420.0,105410.0,2.2e-07]
[1737142278709,0.5808048,105420.0,105410.0,8.6e-07]
[1737142278911,0.5808048,105420.0,105400.0,6.3e-07]
[1737142279108,0.047416,105390.0,105380.0,0.7487319]
[1737142279311,0.9416168,105390.0,105380.0,0.6378439]
[1737142279513,0.9416168,105390.0,105380.0,0.3740009]
[1737142279708,0.9416168,105390.0,105380.0,0.0379717]
[1737142280511,0.9416168,105390.0,105340.0,1.24095199]
[1737142280512,0.047434,105350.0,105340.0,1.24095199]
[1737142280713,0.1337344,105350.0,105340.0,1.24095199]
[1737142281308,0.1337344,105350.0,105340.0,0.83271399]
[1737142281614,0.8637344,105350.0,105340.0,0.83271399]
[1737142281815,0.8637344,105350.0,105340.0,0.36945553]
[1737142282209,0.8637344,105350.0,105340.0,0.41171653]
[1737142282410,0.8637344,105350.0,105340.0,0.50071653]
[1737142282817,0.8637344,105350.0,105340.0,0.19352497]
[1737142283908,0.8637344,105350.0,105340.0,0.60176397]
[1737142284112,0.73,105350.0,105340.0,0.68806437]
[1737142284310,0.777434,105350.0,105340.0,0.78026437]
[1737142284510,0.777434,105350.0,105340.0,0.7654394]
[1737142285005,0.047434,105350.0,105340.0,0.679139]
[1737142285215,0.04743,105360.0,105350.0,0.047431]
[1737142285415,0.4471004,105370.0,105360.0,0.04743]
[1737142285416,0.047426,105370.0,105360.0,0.04743]
[1737142285720,0.047426,105370.0,105360.0,0.4945304]
[1737142285913,0.047426,105370.0,105360.0,0.40823]
[1737142286312,0.1337264,105370.0,105360.0,0.40823]
[1737142287118,0.04743,105360.0,105350.0,0.408233]
[1737142287317,0.047434,105350.0,105340.0,0.679136]
[1737142287512,0.047434,105350.0,105340.0,0.318336]
[1737142287513,0.1337344,105350.0,105340.0,0.318336]
[1737142287705,0.1337344,105350.0,105340.0,0.2709]
[1737142287910,0.1337344,105350.0,105340.0,0.28572528]
[1737142288417,0.4945344,105350.0,105340.0,0.28572528]
[1737142291914,0.047434,105350.0,105340.0,0.78026468]
[1737142292308,0.047434,105350.0,105340.0,0.69396428]
[1737142292506,0.8637344,105350.0,105340.0,0.28572528]
[1737142293110,0.8637344,105350.0,105340.0,0.64652528]
[1737142293316,1.2245344,105350.0,105340.0,0.28572528]
[1737142294020,0.4945344,105350.0,105340.0,0.28572528]
[1737142295922,0.047434,105350.0,105340.0,0.33316428]
[1737142296123,0.047434,105350.0,105340.0,0.28572528]
[1737142296522,0.1337344,105350.0,105340.0,0.28572528]
[1737142299819,0.047434,105350.0,105340.0,0.73282568]
[1737142300017,0.047434,105350.0,105340.0,0.78026468]
[1737142300221,0.047434,105350.0,105340.0,0.64652528]
[1737142300416,0.047434,105350.0,105340.0,0.6317]
[1737142301024,0.047434,105350.0,105340.0,0.679139]
[1737142301425,0.047434,105350.0,105340.0,0.7654394]
[1737142301621,0.047431,105360.0,105350.0,0.047431]
[1737142301821,0.777426,105370.0,105350.0,0.4945314]
[1737142302123,0.047431,105360.0,105350.0,0.4945314]
[1737142305223,0.047431,105360.0,105350.0,0.408231]
[1737142306718,0.047431,105360.0,105350.0,1.0000117]
[1737142307433,0.047431,105360.0,105350.0,1.0863121]
[1737142308330,0.73,105370.0,105350.0,1.0863121]
[1737142308531,0.777426,105370.0,105360.0,0.4945304]
[1737142308730,0.73,105370.0,105360.0,0.4945304]
[1737142309031,0.05813583,105380.0,105360.0,0.4945304]
[1737142309330,0.05813583,105380.0,105370.0,0.6362]
[1737142309530,0.05813483,105380.0,105370.0,0.7699254]
[1737142309730,0.05813483,105380.0,105370.0,0.683625]
[1737142310132,0.05813483,105380.0,105370.0,0.96365428]
[1737142311532,0.05813483,105380.0,105370.0,1.27381405]
[1737142311731,0.14443523,105380.0,105370.0,0.99841405]
[1737142312324,0.05813483,105380.0,105370.0,1.08471445]
[1737142312628,0.05813483,105380.0,105370.0,0.77455468]
[1737142313231,0.05813483,105380.0,105370.0,0.68825428]
[1737142313730,0.05813483,105380.0,105370.0,0.408225]
[1737142314830,0.05813483,105380.0,105370.0,1.00124143]
[1737142316125,0.01071383,105380.0,105370.0,1.08754183]
[1737142316330,0.00142407,105380.0,105370.0,1.08754183]
[1737142317737,0.00142407,105380.0,105370.0,1.14332846]
[1737142319935,0.1337214,105380.0,105370.0,1.05702806]
[1737142320138,0.047421,105380.0,105370.0,1.05702806]
[1737142320338,0.047421,105380.0,105370.0,1.14332846]
[1737142321341,0.047421,105380.0,105370.0,1.08738339]
[1737142321936,0.50992,105400.0,105380.0,0.047416]
[1737142322134,0.40963178,105410.0,105400.0,0.047412]
[1737142322639,1.22593218,105410.0,105400.0,0.047412]
[1737142322841,0.047412,105400.0,105390.0,0.600015]
[1737142323738,0.81772418,105410.0,105390.0,0.6863154]
[1737142323940,0.77883178,105410.0,105400.0,0.408212]
[1737142324445,0.73142378,105410.0,105400.0,0.4945124]
[1737142325340,0.73142378,105410.0,105400.0,0.408212]
[1737142325540,0.77883078,105410.0,105400.0,0.408212]
[1737142326634,0.047412,105400.0,105390.0,0.51908684]
[1737142326834,0.5808128,105400.0,105390.0,0.06169564]
[1737142327038,0.047416,105390.0,105380.0,0.33581591]
[1737142327234,1.0908168,105390.0,105380.0,0.27474486]
[1737142327636,1.0908168,105390.0,105380.0,0.24067482]
[1737142328441,1.0045164,105390.0,105380.0,0.047421]
[1737142328634,1.0908168,105390.0,105380.0,0.047421]
[1737142330140,1.1870168,105390.0,105380.0,0.047421]
[1737142330442,0.047423,105380.0,105370.0,0.047424]
[1737142330742,0.1337234,105380.0,105370.0,0.047424]
[1737142331240,0.047425,105370.0,105360.0,0.047428]
[1737142331536,0.1337254,105370.0,105360.0,0.047428]
[1737142331739,0.4945254,105370.0,105360.0,0.047428]
[1737142331943,0.7789258,105370.0,105360.0,0.047428]
[1737142332141,0.7789258,105370.0,105340.0,0.86831566]
[1737142332142,0.04743,105360.0,105340.0,0.86831366]
[1737142332443,0.0863004,105350.0,105340.0,0.77531366]
[1737142332745,0.1337344,105350.0,105340.0,0.77531366]
[1737142333037,0.1337344,105350.0,105340.0,0.73040486]
[1737142335434,0.047434,105350.0,105340.0,0.73040486]
[1737142336230,0.1337344,105350.0,105340.0,0.73040486]
[1737142337246,0.047434,105350.0,105340.0,0.73040486]
[1737142337546,0.1337344,105350.0,105340.0,0.73040486]
[1737142340040,0.1337344,105350.0,105340.0,0.408236]
[1737142341240,0.5589,105370.0,105340.0,0.4471004]
[1737142341444,0.5589,105370.0,105350.0,0.408232]
[1737142341445,0.04743,105360.0,105350.0,0.408232]
[1737142342041,0.1337304,105360.0,105350.0,0.408232]
[1737142342240,0.1337304,105360.0,105350.0,0.63212232]
[1737142342541,0.04743,105360.0,105350.0,0.63212232]
[1737142343243,0.04743,105360.0,105350.0,0.71842272]
[1737142343446,0.047427,105370.0,105360.0,0.04743]
[1737142343644,0.408223,105380.0,105370.0,0.047425]
[1737142343844,0.1337234,105380.0,105370.0,0.047425]
[1737142344050,0.047425,105370.0,105360.0,0.701929]
[1737142344236,0.1337254,105370.0,105360.0,0.701929]
[1737142344841,0.1337254,105370.0,105360.0,0.9257539]
[1737142347945,0.047425,105370.0,105360.0,0.9257539]
[1737142349849,0.047425,105370.0,105360.0,0.6320539]
[1737142350149,0.047425,105370.0,105360.0,0.2712539]
[1737142350452,0.047425,105370.0,105360.0,0.39406287]
[1737142351349,0.1337254,105370.0,105360.0,0.39406287]
[1737142352146,0.1337254,105370.0,105360.0,0.047429]
[1737142354947,0.408222,105380.0,105370.0,0.047425]
[1737142355150,0.05710087,105390.0,105370.0,0.4945254]
[1737142355451,0.047421,105380.0,105370.0,0.047424]
[1737142355653,0.047421,105380.0,105370.0,0.408224]
[1737142355860,0.1337214,105380.0,105370.0,1.04307724]
[1737142356048,0.1337214,105380.0,105370.0,0.72970224]
[1737142356245,0.1337214,105380.0,105370.0,0.68227724]
[1737142356449,0.047421,105380.0,105370.0,0.72970224]
[1737142356852,0.047421,105380.0,105370.0,0.68227724]
[1737142356853,0.1337214,105380.0,105370.0,0.68227724]
[1737142357252,0.047421,105380.0,105370.0,1.17680264]
[1737142357751,0.047421,105380.0,105370.0,1.5438803]
[1737142358952,0.408217,105390.0,105380.0,0.047421]
[1737142359152,0.047417,105390.0,105380.0,0.1337214]
[1737142359357,0.047417,105390.0,105380.0,0.4945214]
[1737142359955,0.05955563,105400.0,105390.0,0.047416]
[1737142360265,0.01214263,105400.0,105390.0,0.8760168]
[1737142360465,0.04883378,105410.0,105390.0,0.8760168]
[1737142360658,0.04883378,105410.0,105400.0,0.4945124]
[1737142360858,0.04883378,105410.0,105400.0,0.408212]
[1737142361255,0.13513418,105410.0,105400.0,0.3608]
[1737142362051,0.047412,105400.0,105390.0,1.7065949]
[1737142362259,0.1337124,105400.0,105390.0,1.3445549]
[1737142362458,0.4945124,105400.0,105390.0,1.2426549]
[1737142362759,0.1337124,105400.0,105390.0,0.89646578]
[1737142363554,0.4945124,105400.0,105390.0,0.69802025]
[1737142364763,0.4945124,105400.0,105390.0,0.41762011]